Workbook

Sheet паспорт
A1: ПАТ "УКРТРАНСГАЗ" | G1: ПАСПОРТ ФІЗИКО-ХІМІЧНИХ ПОКАЗНИКІВ ПРИРОДНОГО ГАЗУ № 523
A2: Філія "УМГ " Прикарпаттрансгаз" | G2: переданого Закарпатським ЛВУМГ та прийнятого ПАТ "Закарпатгаз", ДП "Укравтогаз" та ТзОВ "СТЕЙТ ОІЛ"
A3: ГКС Ужгород п/м Закарпатського ЛВУМГ | G3: маршрут №523
A4: Вимірювальна хіміко-аналітична лабораторія
A5: Свідоцтво № РВ-0033-13 чинне до 26.06.2018 р. | N5: по газопроводу "ДУД-І" | V5: за період з | X5: 2017-02-01 | Z5: по | AA5: 2017-02-28
A7: Число місяця | B7: Компонентний склад, % мол. | N7: Фізико-хімічні показники газу обчислені на основі компонентного складу, 101,325 кПа | X7: Температура точки роси вологи (Р = 3.92 МПа), ºС | Y7: Температура точки роси вуглеводнів, ºС | Z7: Вміст сірководню, г/м3 | AA7: Вміст меркаптанової сірки, г/м3 | AB7: Вміст механічних домішок, г/м3
N8: Густина абсолютна, кг/м3,при 20 ºС, | O8: Температура вимірювання/згоряння при 20/25°С
B9: метан, С1 | C9: етан, С2 | D9: пропан, С3 | E9: ізо-бутан, і-С4 | F9: н-бутан, н-С4 | G9: нео-пентан, нео-С5 | H9: ізо-пентан, і-С5 | I9: н-пентан, н-С5 | J9: гексани та вищі, С6+ | K9: кисень, О2 | L9: азот, N2 | M9: діоксид вуглецю, CО2 | O9: Теплота згоряння нижча | R9: Теплота згоряння вища | U9: Число Воббе вище
O10: ккал/м3 | P10: МДж/м3 | Q10: кВт⋅год/м3 | R10: ккал/м3 | S10: МДж/м3 | T10: кВт⋅год/м3 | U10: ккал/м3 | V10: МДж/м3 | W10: кВт⋅год/м3
A11: 1 | B11: 96.2219 | C11: 2.075 | D11: 0.6748 | E11: 0.0932 | F11: 0.0994 | G11: 0.0025 | H11: 0.0182 | I11: 0.0126 | J11: 0.0112 | L11: 0.6625 | M11: 0.1287 | N11: 0.6976 | O11: =P11*238.8459 -> 8182.860534 | P11: 34.26 | Q11: 9.516666667 | R11: =S11*238.8459 -> 9073.755741 | S11: 37.99 | T11: 10.55277778 | U11: =V11*238.8459 -> 11923.18733 | V11: 49.92 | W11: 13.86666667 | X11: -16.2 | AC11: =SUM(B11:M11)+$K$39+$N$39 -> 100 | AD11: =IF(AC11=100,"ОК"," ") -> ОК
A12: 2 | B12: 96.2938 | C12: 2.0287 | D12: 0.6557 | E12: 0.0905 | F12: 0.0967 | G12: 0.0024 | H12: 0.0176 | I12: 0.0123 | J12: 0.0113 | L12: 0.6651 | M12: 0.1259 | N12: 0.697 | O12: =P12*238.8459 -> 8175.695157 | P12: 34.23 | Q12: 9.508333333 | R12: =S12*238.8459 -> 9066.590364 | S12: 37.96 | T12: 10.54444444 | U12: =V12*238.8459 -> 11918.41041 | V12: 49.9 | W12: 13.86111111 | AC12: =SUM(B12:M12)+$K$39+$N$39 -> 100 | AD12: ОК
A13: 3 | B13: 96.2758 | C13: 2.0264 | D13: 0.6508 | E13: 0.0895 | F13: 0.0962 | G13: 0.0024 | H13: 0.0179 | I13: 0.0126 | J13: 0.0117 | L13: 0.6782 | M13: 0.1385 | N13: 0.6971 | O13: 8173.306698 | P13: 34.22 | Q13: 9.505555556 | R13: 9064.201905 | S13: 37.95 | T13: 10.54166667 | U13: 11913.63349 | V13: 49.88 | W13: 13.85555556 | AC13: =SUM(B13:M13)+$K$39+$N$39 -> 100 | AD13: ОК
A14: 4 | B14: 96.2089 | C14: 2.0606 | D14: 0.6594 | E14: 0.0902 | F14: 0.0974 | G14: 0.0023 | H14: 0.0181 | I14: 0.0128 | J14: 0.0125 | L14: 0.685 | M14: 0.1528 | N14: 0.6977 | O14: =P14*238.8459 -> 8175.695157 | P14: 34.23 | Q14: 9.508333333 | R14: 9066.590364 | S14: 37.96 | T14: 10.54444444 | U14: 11911.24503 | V14: 49.87 | W14: 13.85277778 | AC14: =SUM(B14:M14)+$K$39+$N$39 -> 100 | AD14: ОК
A15: 5 | B15: 96.3406 | C15: 1.9952 | D15: 0.6444 | E15: 0.0892 | F15: 0.0949 | G15: 0.0024 | H15: 0.0177 | I15: 0.0123 | J15: 0.0118 | L15: 0.6673 | M15: 0.1242 | N15: 0.6966 | O15: 8170.918239 | P15: 34.21 | Q15: 9.502777778 | R15: 9061.813446 | S15: 37.94 | T15: 10.53888889 | U15: 11916.02195 | V15: 49.89 | W15: 13.85833333 | AC15: =SUM(B15:M15)+$K$39+$N$39 -> 100 | AD15: ОК
A16: 6 | B16: 96.3554 | C16: 1.9941 | D16: 0.6427 | E16: 0.0895 | F16: 0.0946 | G16: 0.0024 | H16: 0.0173 | I16: 0.0122 | J16: 0.0109 | L16: 0.6667 | M16: 0.1142 | N16: 0.6964 | O16: 8173.306698 | P16: 34.22 | Q16: 9.505555556 | R16: 9061.813446 | S16: 37.94 | T16: 10.53888889 | U16: 11918.41041 | V16: 49.9 | W16: 13.86111111 | AC16: =SUM(B16:M16)+$K$39+$N$39-K16 -> 100 | AD16: ОК
A17: 7 | B17: 96.2879 | C17: 2.0388 | D17: 0.6609 | E17: 0.0916 | F17: 0.0967 | G17: 0.0024 | H17: 0.0177 | I17: 0.0123 | J17: 0.0108 | L17: 0.6607 | M17: 0.1202 | N17: 0.697 | O17: 8178.083616 | P17: 34.24 | Q17: 9.511111111 | R17: 9068.978823 | S17: 37.97 | T17: 10.54722222 | U17: 11923.18733 | V17: 49.92 | W17: 13.86666667 | AC17: =SUM(B17:M17)+$K$39+$N$39 -> 100 | AD17: ОК
A18: 8 | B18: 96.0021 | C18: 2.1696 | D18: 0.6935 | E18: 0.0942 | F18: 0.1029 | G18: 0.0025 | H18: 0.0194 | I18: 0.0136 | J18: 0.0124 | K18: 0.0081 | L18: 0.7007 | M18: 0.181 | N18: 0.6993 | O18: =P18*238.8459 -> 8185.248993 | P18: 34.27 | Q18: 9.519444444 | R18: =S18*238.8459 -> 9076.1442 | S18: 38 | T18: 10.55555556 | U18: 11911.24503 | V18: 49.87 | W18: 13.85277778 | X18: -16.8 | Y18: ˂-16,8 | Z18: 0.0002 | AA18: 0.0003 | AC18: 100 | AD18: ОК
A19: 9 | B19: 95.7981 | C19: 2.2664 | D19: 0.7122 | E19: 0.095 | F19: 0.1066 | G19: 0.0024 | H19: 0.0206 | I19: 0.0145 | J19: 0.0136 | L19: 0.7389 | M19: 0.2317 | N19: 0.7011 | O19: =P19*238.8459 -> 8187.637452 | P19: 34.28 | Q19: 9.522222222 | R19: =S19*238.8459 -> 9078.532659 | S19: 38.01 | T19: 10.55833333 | U19: 11901.6912 | V19: 49.83 | W19: 13.84166667 | AC19: 100 | AD19: ОК
A20: 10 | B20: 96.2085 | C20: 2.0909 | D20: 0.6857 | E20: 0.0958 | F20: 0.1016 | G20: 0.0023 | H20: 0.019 | I20: 0.013 | J20: 0.0106 | L20: 0.6589 | M20: 0.1137 | N20: 0.6977 | O20: 8187.637452 | P20: 34.28 | Q20: 9.522222222 | R20: 9078.532659 | S20: 38.01 | T20: 10.55833333 | U20: 11927.96425 | V20: 49.94 | W20: 13.87222222 | AC20: 100 | AD20: ОК
A21: 11 | B21: 96.3004 | C21: 2.0358 | D21: 0.6623 | E21: 0.092 | F21: 0.0971 | G21: 0.0022 | H21: 0.0178 | I21: 0.0124 | J21: 0.0099 | L21: 0.6536 | M21: 0.1165 | N21: 0.6969 | O21: 8178.083616 | P21: 34.24 | Q21: 9.511111111 | R21: 9068.978823 | S21: 37.97 | T21: 10.54722222 | U21: 11923.18733 | V21: 49.92 | W21: 13.86666667 | AC21: 100 | AD21: ОК
A22: 12 | B22: 96.2311 | C22: 2.0878 | D22: 0.6754 | E22: 0.0935 | F22: 0.0988 | G22: 0.0023 | H22: 0.018 | I22: 0.0125 | J22: 0.0097 | L22: 0.649 | M22: 0.1219 | N22: 0.6975 | O22: 8185.248993 | P22: 34.27 | Q22: 9.519444444 | R22: 9076.1442 | S22: 38 | T22: 10.55555556 | U22: 11927.96425 | V22: 49.94 | W22: 13.87222222 | AC22: 100 | AD22: ОК
A23: 13 | B23: 96.2574 | C23: 2.064 | D23: 0.6667 | E23: 0.0924 | F23: 0.0978 | G23: 0.0025 | H23: 0.0179 | I23: 0.0124 | J23: 0.0096 | L23: 0.6576 | M23: 0.1217 | N23: 0.6972 | O23: 8180.472075 | P23: 34.25 | Q23: 9.513888889 | R23: 9071.367282 | S23: 37.98 | T23: 10.55 | U23: 11923.18733 | V23: 49.92 | W23: 13.86666667 | AC23: =SUM(B23:M23)+$K$39+$N$39-K23 -> 100 | AD23: ОК
A24: 14 | B24: 96.2992 | C24: 2.0349 | D24: 0.6552 | E24: 0.0907 | F24: 0.0962 | G24: 0.0024 | H24: 0.0179 | I24: 0.0121 | J24: 0.0095 | L24: 0.6646 | M24: 0.1173 | N24: 0.6968 | O24: 8175.695157 | P24: 34.23 | Q24: 9.508333333 | R24: 9066.590364 | S24: 37.96 | T24: 10.54444444 | U24: 11920.79887 | V24: 49.91 | W24: 13.86388889 | AC24: =SUM(B24:M24)+$K$39+$N$39 -> 100 | AD24: ОК
A25: 15 | B25: 96.316 | C25: 2.0255 | D25: 0.6508 | E25: 0.0899 | F25: 0.0952 | G25: 0.0024 | H25: 0.0175 | I25: 0.0121 | J25: 0.0093 | L25: 0.6662 | M25: 0.1151 | N25: 0.6967 | O25: =P25*238.8459 -> 8175.695157 | P25: 34.23 | Q25: 9.508333333 | R25: =S25*238.8459 -> 9066.590364 | S25: 37.96 | T25: 10.54444444 | U25: 11920.79887 | V25: 49.91 | W25: 13.86388889 | X25: -17.2 | AB25: 0 | AC25: 100 | AD25: ОК
A26: 16 | B26: 96.339 | C26: 2.0125 | D26: 0.6472 | E26: 0.0893 | F26: 0.0943 | G26: 0.0023 | H26: 0.0174 | I26: 0.012 | J26: 0.0095 | L26: 0.6631 | M26: 0.1134 | N26: 0.6965 | O26: =P26*238.8459 -> 8173.306698 | P26: 34.22 | Q26: 9.505555556 | R26: =S26*238.8459 -> 9064.201905 | S26: 37.95 | T26: 10.54166667 | U26: 11920.79887 | V26: 49.91 | W26: 13.86388889 | AC26: 100 | AD26: ОК
A27: 17 | B27: 96.3485 | C27: 2.0102 | D27: 0.6469 | E27: 0.089 | F27: 0.0936 | G27: 0.0023 | H27: 0.0173 | I27: 0.012 | J27: 0.0099 | L27: 0.6568 | M27: 0.1135 | N27: 0.6964 | O27: 8173.306698 | P27: 34.22 | Q27: 9.505555556 | R27: 9064.201905 | S27: 37.95 | T27: 10.54166667 | U27: 11920.79887 | V27: 49.91 | W27: 13.86388889 | AC27: 100 | AD27: ОК
A28: 18 | B28: 96.3669 | C28: 1.999 | D28: 0.6426 | E28: 0.0886 | F28: 0.0931 | G28: 0.0023 | H28: 0.0171 | I28: 0.012 | J28: 0.0097 | L28: 0.657 | M28: 0.1117 | N28: 0.6963 | O28: 8173.306698 | P28: 34.22 | Q28: 9.505555556 | R28: 9064.201905 | S28: 37.95 | T28: 10.54166667 | U28: 11920.79887 | V28: 49.91 | W28: 13.86388889 | AC28: 100 | AD28: ОК
A29: 19 | B29: 96.3827 | C29: 1.9868 | D29: 0.639 | E29: 0.0883 | F29: 0.0929 | G29: 0.0023 | H29: 0.0171 | I29: 0.0117 | J29: 0.0098 | L29: 0.6588 | M29: 0.1106 | N29: 0.6961 | O29: 8170.918239 | P29: 34.21 | Q29: 9.502777778 | R29: 9061.813446 | S29: 37.94 | T29: 10.53888889 | U29: 11920.79887 | V29: 49.91 | W29: 13.86388889 | AC29: 100 | AD29: ОК
A30: 20 | B30: 96.3381 | C30: 2.0167 | D30: 0.6473 | E30: 0.089 | F30: 0.0936 | G30: 0.0023 | H30: 0.0171 | I30: 0.012 | J30: 0.0101 | L30: 0.66 | M30: 0.1138 | N30: 0.6965 | O30: 8173.306698 | P30: 34.22 | Q30: 9.505555556 | R30: 9064.201905 | S30: 37.95 | T30: 10.54166667 | U30: 11920.79887 | V30: 49.91 | W30: 13.86388889 | AC30: =SUM(B30:M30)+$K$39+$N$39-K30 -> 100 | AD30: ОК
A31: 21 | B31: 96.3471 | C31: 2.0084 | D31: 0.6465 | E31: 0.0891 | F31: 0.0938 | G31: 0.0025 | H31: 0.0172 | I31: 0.0122 | J31: 0.0108 | L31: 0.6601 | M31: 0.1123 | N31: 0.6964 | O31: 8173.306698 | P31: 34.22 | Q31: 9.505555556 | R31: 9064.201905 | S31: 37.95 | T31: 10.54166667 | U31: 11920.79887 | V31: 49.91 | W31: 13.86388889 | AC31: =SUM(B31:M31)+$K$39+$N$39 -> 100 | AD31: ОК
A32: 22 | B32: 96.2408 | C32: 2.0609 | D32: 0.6534 | E32: 0.091 | F32: 0.0946 | G32: 0.0024 | H32: 0.0177 | I32: 0.0121 | J32: 0.0111 | L32: 0.6692 | M32: 0.1468 | N32: 0.6973 | O32: =P32*238.8459 -> 8175.695157 | P32: 34.23 | Q32: 9.508333333 | R32: =S32*238.8459 -> 9066.590364 | S32: 37.96 | T32: 10.54444444 | U32: 11916.02195 | V32: 49.89 | W32: 13.85833333 | X32: -16.6 | Y32: ˂-16,6 | AC32: 100 | AD32: ОК
A33: 23 | B33: 96.167 | C33: 2.0977 | D33: 0.6592 | E33: 0.0929 | F33: 0.0951 | G33: 0.0024 | H33: 0.0191 | I33: 0.0126 | J33: 0.012 | L33: 0.6731 | M33: 0.1689 | N33: 0.698 | O33: =P33*238.8459 -> 8178.083616 | P33: 34.24 | Q33: 9.511111111 | R33: =S33*238.8459 -> 9068.978823 | S33: 37.97 | T33: 10.54722222 | U33: 11911.24503 | V33: 49.87 | W33: 13.85277778 | AC33: 100 | AD33: ОК
A34: 24 | B34: 96.3105 | C34: 2.024 | D34: 0.6339 | E34: 0.086 | F34: 0.0885 | G34: 0.0023 | H34: 0.0168 | I34: 0.0113 | J34: 0.0108 | L34: 0.6745 | M34: 0.1414 | N34: 0.6966 | O34: 8168.52978 | P34: 34.2 | Q34: 9.5 | R34: 9059.424987 | S34: 37.93 | T34: 10.53611111 | U34: 11911.24503 | V34: 49.87 | W34: 13.85277778 | AC34: 100 | AD34: ОК
A35: 25 | B35: 96.3933 | C35: 1.9851 | D35: 0.631 | E35: 0.0851 | F35: 0.089 | G35: 0.0023 | H35: 0.016 | I35: 0.0111 | J35: 0.0088 | L35: 0.6663 | M35: 0.112 | N35: 0.6959 | O35: 8166.141321 | P35: 34.19 | Q35: 9.497222222 | R35: 9057.036528 | S35: 37.92 | T35: 10.53333333 | U35: 11916.02195 | V35: 49.89 | W35: 13.85833333 | AC35: 100 | AD35: ОК
A36: 26 | B36: 96.2749 | C36: 2.0576 | D36: 0.6589 | E36: 0.0899 | F36: 0.0946 | G36: 0.0024 | H36: 0.0171 | I36: 0.0119 | J36: 0.0097 | L36: 0.6646 | M36: 0.1184 | N36: 0.697 | O36: 8178.083616 | P36: 34.24 | Q36: 9.511111111 | R36: 9068.978823 | S36: 37.97 | T36: 10.54722222 | U36: 11920.79887 | V36: 49.91 | W36: 13.86388889 | AC36: 100 | AD36: ОК
A37: 27 | B37: 96.2905 | C37: 2.0466 | D37: 0.657 | E37: 0.0898 | F37: 0.0946 | G37: 0.0022 | H37: 0.0171 | I37: 0.0121 | J37: 0.01 | L37: 0.6617 | M37: 0.1184 | N37: 0.6969 | O37: 8178.083616 | P37: 34.24 | Q37: 9.511111111 | R37: 9068.978823 | S37: 37.97 | T37: 10.54722222 | U37: 11920.79887 | V37: 49.91 | W37: 13.86388889 | AC37: =SUM(B37:M37)+$K$39+$N$39-K37 -> 100 | AD37: ОК
A38: 28 | B38: 96.3089 | C38: 2.0338 | D38: 0.6566 | E38: 0.0897 | F38: 0.0947 | G38: 0.0025 | H38: 0.0171 | I38: 0.012 | J38: 0.012 | L38: 0.6554 | M38: 0.1173 | N38: 0.6968 | O38: 8178.083616 | P38: 34.24 | Q38: 9.511111111 | R38: 9068.978823 | S38: 37.97 | T38: 10.54722222 | U38: 11923.18733 | V38: 49.92 | W38: 13.86666667 | AC38: =SUM(B38:M38)+$K$39+$N$39 -> 100 | AD38: ОК
A39: Рівень одоризації відповідає чинним нормативним документам | O39: 8176.808547 | P39: 34.23466154 | Q39: 9.509628206 | R39: 9067.626408 | S39: 37.96433771 | T39: 10.54564936
H40: Середньозважене значення теплоти згоряння:
B43: Начальник Закарпатського ЛВУМГ | O43: Лукіта В.Ф. | U43: 01.03.17.
D44: Підрозділу підприємства, якому підпорядкована лабораторія | O44: прізвище | R44: підпис | U44: дата
B45: Начальник ВХАЛ | O45: Завадяк О.В. | U45: 01.03.17.
E46: Лабораторія, де здійснювались аналізи газу | O46: прізвище | R46: підпис | U46: дата
B47: Начальник метрологічної служби | O47: Водянчук М.В. | U47: 01.03.17.
E48: Метрологічна служба, яка вимірює обсяги газу | O48: прізвище | R48: підпис | U48: дата

Sheet додаток
A2: Додаток до Паспорту фізико-хімічних показників природного газу № 523
A4: Область | B4: ГРС, прямий споживач | C4: Cередньозважене значення вищої теплоти згоряння
C5: МДж/м³ | D5: ккал/м³ | E5: кВт*год./м³
A6: Закарпатська область | B6: ГРС Ужгород | C6: 37.96 | D6: 9068 | E6: 10.55
B7: ГРС П.-Комарівці | C7: 37.96 | D7: 9068 | E7: 10.55
B8: ГРС Геївці | C8: 37.96 | D8: 9068 | E8: 10.55
B9: ГРС Чоп | C9: 37.96 | D9: 9068 | E9: 10.55
A10: Середньозважене значення вищої теплоти згоряння по маршруту № 523 | C10: 37.96 | D10: 9068 | E10: 10.55
A14: Начальник управління Закарпатського ЛВУМГ | D14: Лукіта В.Ф. | F14: 01.03.17р.
A15: Підрозділу підприємства, якому підпорядкована лабораторія | D15: прізвище | E15: підпис | F15: дата
A16: Хімік ВХАЛ Закарпатського ЛВУМГ ЛВУМГ | D16: Завадяк О.В. | F16: 01.03.17р.
A17: Лабораторія, де здійснювалось вимірювання газу | D17: прізвище | E17: підпис | F17: дата
A18: Начальник метрологічної служби | D18: Водянчук М.В. | F18: 01.03.17р.
A19: Підрозділу, відповідального за облік газу за маршрутом | D19: прізвище | E19: підпис | F19: дата

Sheet variablesList (hidden)
A1: 3 | B1: x:\gaysin | C1: 10, 11, 24, 25, 127, 128, 132, 180, 207, 215 | D1: x:\
B2: x:\Illinci
B3: x:\Talne
